bitfinex-derivatives/quotes_SOLF0:USTF0_20251229
["timestamp","ask_amount","ask_price","bid_price","bid_amount"]
[1767010280969,95.42,123.92,123.83,3.34]
[1767010281169,125.46202796,123.95,123.84,3.34]
[1767010281170,95.42,123.93,123.84,3.34]
[1767010281670,12.42322796,124.01,123.89,3.34]
[1767010281876,97.27,124.01,123.89,3.34]
[1767010282274,1.85,123.99,123.89,3.34]
[1767010282476,97.27,123.98,123.89,3.34]
[1767010282682,0.05303772,123.95,123.92,0.06008761]
[1767010282977,0.05303772,123.95,123.92,8.761e-05]
[1767010283678,1.79,123.94,123.92,8.761e-05]
[1767010283875,1.79,123.94,123.84,3.34]
[1767010284069,95.42,123.93,123.84,3.34]
[1767010284273,95.42,123.93,123.85,10.6151]
[1767010284977,0.05440323,123.9,123.88,0.0601913]
[1767010285365,9.0587,123.97,123.88,0.0601913]
[1767010285576,9.0587,123.97,123.86,7.2746]
[1767010285577,95.42,123.96,123.86,10.6146]
[1767010286269,1.84,123.95,123.86,3.34]
[1767010286469,0.06007382,123.92,123.89,0.05598414]
[1767010288473,1.84,123.99,123.89,0.05598414]
[1767010288672,95.42,123.98,123.88,3.34]
[1767010289069,1.9,123.97,123.88,3.34]
[1767010289278,1.9,123.97,123.85,116.5099]
[1767010289577,0.06107448,123.92,123.9,0.05887973]
[1767010289776,0.06124071,123.92,123.9,0.05887973]
[1767010290881,0.00124071,123.92,123.9,0.05887973]
[1767010294175,0.00124071,123.92,123.83,3.34]
[1767010294479,1.9,123.94,123.83,3.34]
[1767010295087,1.9,123.89,123.8,3.34]
[1767010295385,7.2737,123.88,123.8,3.34]
[1767010295978,9.1737,123.88,123.79,7.2788]
[1767010296178,9.1737,123.88,123.77,116.5842]
[1767010296179,0.06051166,123.85,123.82,0.05960338]
[1767010297079,0.00051166,123.85,123.82,0.05960338]
[1767010297488,0.00051166,123.85,123.76,3.34]
[1767010297783,1.9,123.87,123.76,3.34]
[1767010297784,1.9,123.86,123.76,3.34]
[1767010297987,1.9,123.84,123.73,3.34]
[1767010298189,97.34,123.84,123.73,3.34]
[1767010298389,97.34,123.84,123.72,4.765e-05]
[1767010298390,115.0967,123.83,123.72,4.765e-05]
[1767010298585,0.059321,123.79,123.72,4.765e-05]
[1767010299689,0.059321,123.79,123.74,0.05252913]
[1767010300093,1.899321,123.79,123.74,0.00252913]
[1767010300385,9.178521,123.79,123.74,0.00252913]
[1767010301284,1.79,123.76,123.74,0.00252913]
[1767010301481,95.46,123.76,123.72,4.765e-05]
[1767010301885,97.25,123.76,123.72,4.765e-05]
[1767010302079,1.79,123.76,123.72,4.765e-05]
[1767010302285,97.27,123.78,123.72,4.765e-05]
[1767010302485,0.05235722,123.76,123.72,4.765e-05]
[1767010303481,0.05235722,123.76,123.65,3.34]
[1767010303482,1.84235722,123.76,123.65,3.34]
[1767010303684,1.79,123.75,123.65,3.34]
[1767010303882,1.79,123.77,123.67,3.34]
[1767010304480,1.79,123.77,123.71,0.0408467]
[1767010304481,0.0571661,123.73,123.71,0.0408467]
[1767010306086,1.8,123.8,123.71,0.0408467]
[1767010306388,1.8,123.8,123.69,3.4]
[1767010306977,0.05247884,123.76,123.73,0.05936932]
[1767010308082,0.05247884,123.76,123.69,3.4]
[1767010308483,0.05247884,123.76,123.69,10.6844]
[1767010308986,0.05247884,123.76,123.71,0.03864348]
[1767010310784,1.79247884,123.76,123.66,3.4]
[1767010310983,1.74,123.76,123.66,3.4]
[1767010311180,8.9817,123.75,123.66,3.4]
[1767010311786,0.0588979,123.72,123.66,3.4]
[1767010315990,1.7588979,123.72,123.62,3.29]
[1767010316191,1.7,123.72,123.62,3.29]
[1767010317295,7.2838,123.71,123.66,0.05831273]
[1767010318091,7.34338454,123.7,123.66,0.05831273]
[1767010318998,8.9251,123.69,123.61,3.29]
[1767010319590,7.2855,123.68,123.61,3.29]
[1767010319798,7.2855,123.68,123.58,10.5809]
[1767010319999,0.05698811,123.64,123.62,0.05212412]
[1767010320190,113.2958,123.72,123.62,3.34212412]
[1767010320191,1.7,123.72,123.62,3.34212412]
[1767010320392,1.7,123.75,123.64,3.29]
[1767010320790,1.7,123.75,123.65,3.29]
[1767010321193,0.001551,123.71,123.69,0.06037397]
[1767010321394,102.8408,123.76,123.69,0.06037397]
[1767010322390,1.7,123.78,123.69,0.06037397]
[1767010322391,0.00097762,123.74,123.7,3.29]
[1767010322896,0.00097762,123.74,123.67,3.29]
[1767010323299,0.00097762,123.74,123.68,10.5752]
[1767010323502,102.8599,123.78,123.69,3.29]
[1767010323800,95.58,123.78,123.69,3.29]
[1767010324200,95.58,123.78,123.7,10.574]
[1767010324501,0.00340917,123.75,123.73,0.05978492]
[1767010324803,0.00340917,123.75,123.68,3.29]
[1767010325004,0.00340917,123.75,123.66,3.29]
[1767010325192,1.91,123.77,123.66,3.29]
[1767010325506,1.85,123.74,123.63,3.29]
[1767010325891,0.05830932,123.7,123.67,0.06015829]
[1767010326290,208.8205,123.78,123.67,3.35015829]
[1767010326291,115.1505,123.78,123.67,3.35015829]
[1767010326603,97.49,123.81,123.7,10.5741]
[1767010326794,210.7021,123.81,123.71,3.29]
[1767010327302,0.05796308,123.77,123.75,0.05186918]
[1767010327891,0.05796308,123.77,123.75,0.00186918]
[1767010328697,1.91796308,123.77,123.75,0.00186918]
[1767010328988,1.91796308,123.77,123.66,95.5]
[1767010328989,1.86,123.75,123.67,10.5758]
[1767010329195,1.86,123.78,123.68,3.29]
[1767010329401,6.54569041,123.8,123.7,3.29]
[1767010329598,210.6362,123.81,123.7,3.29]
[1767010329793,0.05679315,123.77,123.74,0.06002112]
[1767010329994,0.05679315,123.77,123.74,2.112e-05]
[1767010330194,113.30559315,123.77,123.74,2.112e-05]
[1767010330600,115.10559315,123.77,123.68,3.29]
[1767010330798,1.8,123.74,123.65,3.29]
[1767010331102,323.9356,123.73,123.62,3.29]
[1767010331303,97.36,123.73,123.63,3.29]
[1767010331498,115.0941,123.72,123.63,3.29]
[1767010331703,0.05777219,123.69,123.66,0.05218524]
[1767010334909,7.2823,123.74,123.66,3.34218524]
[1767010335108,95.58,123.77,123.66,3.29]
[1767010335410,95.58,123.77,123.64,119.90659041]
[1767010335411,95.58,123.77,123.68,3.29]
[1767010335610,1.85,123.78,123.68,3.29]
[1767010335811,102.12569041,123.8,123.72,0.05283441]
[1767010335812,0.00113439,123.74,123.72,0.05283441]
[1767010336016,95.58,123.8,123.72,3.43]
[1767010336313,7.279,123.79,123.72,3.43]
[1767010337105,0.05092538,123.77,123.74,0.05354126]
[1767010338313,0.00092538,123.77,123.74,0.05354126]
[1767010340415,0.00092538,123.77,123.74,0.00354126]
[1767010340719,7.29492221,123.76,123.74,0.00354126]
[1767010340918,0.00092538,123.77,123.68,113.325]
[1767010341213,1.9,123.74,123.65,3.43]
[1767010341417,115.1831,123.73,123.65,3.43]
[1767010341610,121.72879041,123.73,123.62,98.93]
[1767010341813,121.72879041,123.73,123.62,3.43]
[1767010342117,0.05216933,123.69,123.66,0.06091407]
[1767010345815,0.00216933,123.69,123.66,0.06091407]
[1767010348126,0.00216933,123.69,123.66,95.56091407]
[1767010348622,0.00216933,123.69,123.67,3.43]
[1767010348823,9.70171267,123.79,123.7,3.43]
[1767010348824,7.29492221,123.79,123.7,3.43]
[1767010349018,7.2791,123.79,123.7,3.43]
[1767010349428,7.2791,123.79,123.7,98.93]
[1767010349429,1.95,123.79,123.7,98.93]
[1767010349625,1.95,123.77,123.7,95.5]
[1767010349826,0.05670086,123.75,123.72,0.05554875]
[1767010350737,113.2194,123.8,123.72,0.05554875]
[1767010350919,7.29492221,123.8,123.69,3.43]
[1767010351322,9.24492221,123.81,123.72,3.43]
[1767010351520,1.95,123.81,123.72,3.43]
[1767010351720,1.95,123.81,123.75,0.06048495]
[1767010351721,0.06012406,123.78,123.75,0.06048495]
[1767010354525,0.00012406,123.78,123.75,0.06048495]
[1767010354728,7.2776,123.82,123.75,3.49048495]
[1767010355025,7.2776,123.82,123.75,98.99048495]
[1767010355732,0.05372164,123.8,123.75,98.99048495]
[1767010355928,0.00372164,123.8,123.76,3.43]
[1767010356934,2.01,123.84,123.76,3.43]
[1767010357129,113.1728,123.86,123.76,3.43]
[1767010357630,113.1728,123.86,123.77,95.48]
[1767010357824,7.275,123.86,123.78,3.43]
[1767010358239,0.05698037,123.83,123.81,0.05774859]
[1767010358932,7.2728,123.9,123.82,3.23696505]
[1767010359628,7.2728,123.9,123.83,95.48]
[1767010360029,0.05406869,123.88,123.85,0.06022814]
[1767010360425,0.05406869,123.88,123.83,95.48]
[1767010360426,0.05406869,123.88,123.79,3.43]
[1767010360622,7.2761,123.84,123.76,95.46]
[1767010361227,7.277,123.83,123.75,98.89]
[1767010361436,0.05644208,123.8,123.78,0.0562806]
[1767010361730,0.05486535,123.8,123.78,0.0562806]
[1767010363431,0.05486535,123.8,123.74,95.46]
[1767010363937,0.05486535,123.8,123.74,98.89]
[1767010364441,0.05486535,123.8,123.76,0.0555249]
[1767010371942,3.23486535,123.8,123.73,1.07422]
[1767010372240,3.23486535,123.8,123.73,96.51422]
[1767010372936,0.05486535,123.8,123.75,0.05102571]
[1767010373135,0.05486535,123.8,123.75,95.49102571]
[1767010375443,3.23486535,123.8,123.73,0.00524571]
[1767010376443,0.05486535,123.8,123.75,0.0596774]
[1767010377555,0.05486535,123.8,123.73,0.00524571]
[1767010377556,3.18,123.78,123.73,0.00524571]
[1767010378754,0.05078913,123.77,123.73,0.00524571]
[1767010379545,0.05078913,123.77,123.74,0.05877774]
[1767010380354,0.05078913,123.77,123.73,0.00524571]
[1767010380649,0.00078913,123.77,123.73,0.00524571]
[1767010380849,116.60008913,123.77,123.68,95.46]
[1767010381146,116.5993,123.77,123.68,95.46]
[1767010381450,3.35,123.75,123.67,3.42]
[1767010381648,0.05949662,123.72,123.7,0.05171445]
[1767010381846,0.05665843,123.72,123.7,0.05504573]
[1767010382039,3.35,123.77,123.7,0.05504573]
[1767010382234,116.6061,123.76,123.67,3.42]
[1767010382544,3.35,123.76,123.67,3.42]
[1767010382936,7.2832,123.72,123.64,3.42]
[1767010383137,0.05357936,123.69,123.67,0.06020133]
[1767010383333,0.00357936,123.69,123.67,0.06020133]
[1767010383548,7.2816,123.75,123.67,0.06020133]
[1767010383742,3.35,123.77,123.67,3.42]
[1767010384140,3.35,123.77,123.67,10.7058]
[1767010384345,113.2379,123.78,123.68,3.42]
[1767010384543,3.35,123.78,123.69,95.46]
[1767010384740,3.35,123.78,123.72,0.06082401]
[1767010384741,0.05779292,123.74,123.72,0.06082401]
[1767010385749,0.05779292,123.74,123.66,95.48]
[1767010385946,7.282,123.74,123.65,3.42]
[1767010386250,7.282,123.74,123.66,98.9]
[1767010386651,0.0557626,123.71,123.69,0.05771213]
[1767010386946,10.631,123.76,123.69,0.05771213]
[1767010387946,0.05724274,123.74,123.69,0.05771213]
[1767010389248,0.05724274,123.74,123.69,3.47771213]
[1767010389551,3.35,123.78,123.69,3.47771213]
[1767010389749,3.35,123.78,123.69,3.42]
[1767010389951,7.2808,123.76,123.69,3.42]
[1767010390248,3.35,123.76,123.68,95.48]
[1767010390449,0.0521235,123.73,123.71,0.0600685]
[1767010390653,0.0521235,123.73,123.66,3.42]
[1767010390948,0.0521235,123.73,123.66,98.9]
[1767010391550,113.2996,123.72,123.58,113.4134]
[1767010391756,3.35,123.71,123.64,0.05809643]
[1767010391957,3.35,123.71,123.62,3.42]
[1767010392152,3.35,123.71,123.62,98.9]
[1767010392654,113.2793,123.74,123.63,3.42]
[1767010392957,0.05830884,123.7,123.67,0.05501368]
[1767010393657,3.35,123.68,123.57,3.42]
[1767010394454,0.05398715,123.64,123.61,3.47450269]
[1767010394752,7.2832,123.72,123.63,3.42]
[1767010395549,0.05315525,123.69,123.66,0.05388894]
[1767010396255,0.00315525,123.69,123.66,0.05388894]
[1767010396453,116.6139,123.77,123.67,3.32]
[1767010397155,116.6229,123.76,123.67,3.32]
[1767010397345,113.2658,123.75,123.67,3.32]
[1767010397546,0.05124658,123.73,123.7,0.05538601]
[1767010398453,0.05124658,123.73,123.64,3.32]
[1767010398648,10.6408,123.76,123.66,3.32]
[1767010398853,116.609,123.77,123.66,3.32]
[1767010399059,116.609,123.77,123.67,95.5]
[1767010399451,0.06025154,123.73,123.71,0.00161694]
[1767010399952,0.06025154,123.73,123.66,3.32]
[1767010400458,0.06025154,123.73,123.64,3.32]
[1767010400660,116.6367,123.74,123.64,3.32]
[1767010400855,0.05270676,123.7,123.68,0.05566115]
[1767010401057,0.05270676,123.7,123.64,3.32]
[1767010401953,0.05270676,123.7,123.66,0.05423352]
[1767010402856,0.00270676,123.7,123.66,3.37423352]
[1767010406356,0.00270676,123.7,123.66,0.05423352]
[1767010407151,7.28710676,123.7,123.66,0.05423352]
[1767010407551,0.00270676,123.7,123.66,0.05423352]
[1767010410359,7.2861,123.67,123.6,98.82]
[1767010410564,116.6898,123.68,123.6,3.32]
[1767010410865,10.6458,123.68,123.6,3.32]
[1767010411263,120.6249,123.67,123.6,3.32]
[1767010411475,0.06047017,123.65,123.57,3.32]
[1767010411657,113.3502,123.66,123.57,3.32]
[1767010411854,113.3386,123.67,123.57,3.32]
[1767010412068,116.7216,123.65,123.57,3.32]
[1767010412263,113.4033,123.6,123.52,3.32]
[1767010412561,7.2896,123.61,123.55,0.0609876]
[1767010412766,212.3018,123.65,123.55,3.3809876]
[1767010412956,212.3018,123.65,123.55,3.32]
[1767010412957,113.3664,123.64,123.55,3.32]
[1767010413162,120.6547,123.64,123.55,3.32]
[1767010413564,0.05948688,123.61,123.58,0.06053673]
[1767010414359,3.41948688,123.61,123.58,0.06053673]
[1767010414662,0.05948688,123.61,123.58,0.06053673]
[1767010414968,7.2873,123.65,123.58,0.06053673]
[1767010415170,3.36,123.67,123.58,0.06053673]
[1767010415469,10.6482,123.64,123.53,3.32]
[1767010415676,3.36,123.61,123.53,3.32]
[1767010416166,7.2907,123.59,123.56,0.05623868]
[1767010416364,113.4315,123.57,123.51,15.63650411]
[1767010416561,120.7237,123.57,123.51,15.63650411]
[1767010416767,113.4182,123.59,123.51,2.47810411]
[1767010416968,5.7724772,123.58,123.51,2.47810411]
[1767010417163,5.7724772,123.58,123.49,3.32]
[1767010417164,113.4307,123.57,123.46,3.32]
[1767010417366,119.2148772,123.56,123.46,3.32]
[1767010417570,0.00024419,123.53,123.5,0.05705757]
[1767010417870,113.4335,123.57,123.48,3.32]
[1767010418373,219.63174669,123.62,123.48,3.32]
[1767010418562,113.3772,123.63,123.54,0.05210206]
[1767010418762,5.76267406,123.62,123.51,3.32]
[1767010418963,119.14707406,123.62,123.51,3.32]
[1767010419173,113.4029,123.6,123.51,3.32]
[1767010419364,7.2911,123.59,123.51,3.32]
[1767010419571,113.4225,123.58,123.48,3.32]
[1767010419763,0.05343821,123.54,123.52,0.0568467]
[1767010419963,0.05343821,123.54,123.48,3.32]
[1767010420168,0.05343821,123.54,123.44,17.92334669]
[1767010420169,0.05343821,123.54,123.45,3.32]
[1767010420468,113.4416,123.56,123.45,3.32]
[1767010420856,0.05355355,123.52,123.49,0.05483746]
[1767010422261,113.4027,123.6,123.49,3.37483746]
[1767010422460,113.4027,123.6,123.49,3.32]
[1767010422461,7.2922,123.57,123.49,3.32]
[1767010423367,0.05410062,123.54,123.52,0.05827642]
[1767010423675,113.3915,123.62,123.52,0.05827642]
[1767010423869,5.74692946,123.61,123.49,3.32]
[1767010424074,7.2903,123.6,123.5,10.6158]
[1767010424570,7.2903,123.6,123.51,3.32]
[1767010424774,0.00337504,123.57,123.54,0.06140595]
[1767010424975,0.00337504,123.57,123.54,3.32]
[1767010425172,113.3555,123.66,123.54,4.94]
[1767010425472,113.3555,123.66,123.54,3.32]
[1767010425873,113.3474,123.66,123.56,3.18]
[1767010426171,0.05420143,123.62,123.6,0.0570441]
[1767010426871,0.05420143,123.62,123.56,3.18]
[1767010427271,113.44150143,123.62,123.53,3.18]
[1767010427477,113.3807,123.63,123.53,3.18]
[1767010427871,0.05720986,123.59,123.57,0.05812739]
[1767010428070,0.05720986,123.59,123.5,3.18]
[1767010428275,113.3869,123.62,123.5,3.18]
[1767010428470,7.2898,123.61,123.51,3.18]
[1767010429076,0.00396744,123.57,123.55,0.05319842]
[1767010429277,0.00396744,123.57,123.55,3.23319842]
[1767010429478,0.00396744,123.57,123.55,4.85319842]
[1767010429664,113.3529,123.66,123.56,3.18]
[1767010430374,7.2876,123.65,123.56,3.18]
[1767010430563,0.0545629,123.62,123.59,0.05887947]
[1767010438780,7.3436629,123.62,123.59,0.05887947]
[1767010439082,0.0545629,123.62,123.54,3.3]
[1767010439281,113.3723,123.64,123.54,3.3]
[1767010439672,7.2888,123.63,123.54,3.3]
[1767010439878,113.3533,123.66,123.54,3.3]
[1767010440085,113.3533,123.66,123.58,3.3]
[1767010440381,7.2868,123.66,123.58,3.3]
[1767010440572,113.3194,123.7,123.58,3.3]
[1767010440772,7.2858,123.68,123.6,3.3]
[1767010440979,7.2858,123.68,123.59,102.8703]
[1767010440980,119.85011276,123.72,123.63,0.06049123]
[1767010441171,119.85011276,123.72,123.62,3.3]
[1767010441778,119.82131276,123.75,123.62,3.3]
[1767010441979,0.06034963,123.7,123.67,0.05692951]
[1767010442276,0.06034963,123.7,123.67,0.05943486]
[1767010442480,6.55481276,123.75,123.67,0.05943486]
[1767010442681,6.55481276,123.75,123.66,3.3]
[1767010442886,119.79651276,123.78,123.66,3.3]
[1767010443086,5.77365375,123.77,123.66,3.3]
[1767010443291,113.2871,123.73,123.63,3.3]
[1767010443484,0.06212656,123.69,123.67,0.05810262]
[1767010443780,0.05227156,123.69,123.67,0.05810262]
[1767010443986,7.2823,123.74,123.67,0.05810262]
[1767010444181,113.3691,123.64,123.56,3.3]
[1767010444388,6.55481276,123.6,123.5,3.3]
[1767010444589,113.4145,123.59,123.5,3.3]
[1767010444788,7.2928,123.56,123.45,3.3]
[1767010445285,0.05497566,123.52,123.49,0.05133881]
[1767010445589,0.00497566,123.52,123.49,0.05133881]
[1767010446784,120.67912221,123.62,123.49,3.35133881]
[1767010446993,13.84521276,123.6,123.5,3.3]
[1767010447284,12.31852019,123.59,123.5,3.3]
[1767010447486,6.55481276,123.59,123.5,3.3]
[1767010447874,0.05595021,123.56,123.53,0.05157827]
[1767010449383,113.4759,123.52,123.42,3.3]
[1767010449579,6.55481276,123.5,123.42,3.3]
[1767010449785,6.55481276,123.5,123.37,3.3]
[1767010449786,113.5062,123.49,123.37,3.3]
[1767010450082,120.07751276,123.47,123.34,3.3]
[1767010450384,0.06109456,123.42,123.34,3.3]
[1767010450587,6.55481276,123.44,123.31,19.13976628]
[1767010450888,5.75076189,123.43,123.31,19.13976628]
[1767010451182,6.55481276,123.41,123.31,15.83976628]
[1767010451384,113.5882,123.4,123.31,15.83976628]
[1767010451590,209.2211,123.43,123.31,15.83976628]
[1767010451789,6.55481276,123.39,123.31,15.83976628]
[1767010452187,113.5711,123.42,123.31,1.75976628]
[1767010452485,6.55481276,123.38,123.31,1.75976628]
[1767010452684,6.61386939,123.38,123.35,0.00365248]
[1767010452891,0.05905663,123.38,123.35,0.00365248]
[1767010453086,6.55481276,123.45,123.35,0.00365248]
[1767010453285,6.55481276,123.45,123.35,116.9281]
[1767010453586,95.7,123.5,123.39,3.3]
[1767010453891,95.7,123.5,123.38,113.6021]
[1767010453892,209.1467,123.56,123.43,113.5554]
[1767010454189,113.417,123.59,123.43,113.5554]
[1767010454190,6.55481276,123.54,123.48,0.05645384]
[1767010454380,6.55481276,123.54,123.47,3.3]
[1767010454580,113.4393,123.56,123.44,3.3]
[1767010454779,6.55481276,123.54,123.44,3.3]
[1767010455188,0.05911853,123.5,123.48,0.05154044]
[1767010455991,6.55481276,123.54,123.48,0.05154044]
[1767010456490,6.55481276,123.51,123.41,113.5708]
[1767010456797,6.55481276,123.51,123.4,124.1226]
[1767010456989,6.55481276,123.51,123.42,116.8053]
[1767010457194,6.55481276,123.51,123.42,124.1053]
[1767010457489,0.00262757,123.48,123.46,116.7683]
[1767010457694,6.55481276,123.54,123.46,3.24]
[1767010458089,6.55481276,123.58,123.5,3.24]
[1767010458287,113.3641,123.65,123.5,3.24]
[1767010458288,6.55481276,123.61,123.52,111.1524311]
[1767010458490,0.00225766,123.58,123.55,0.05762949]
[1767010458690,6.55481276,123.64,123.55,0.05762949]
[1767010458889,6.55481276,123.64,123.53,3.24]
[1767010458890,5.73482586,123.63,123.53,3.24]
[1767010459092,6.55481276,123.61,123.53,3.24]
[1767010459694,6.55481276,123.61,123.5,7.2959]
[1767010459695,0.05572755,123.58,123.5,98.9]
[1767010459889,6.55481276,123.61,123.5,98.9]
[1767010460089,6.55481276,123.61,123.5,3.24]
[1767010460290,120.65352221,123.65,123.52,3.24]
[1767010460291,6.55481276,123.62,123.52,3.24]
[1767010460494,6.55481276,123.62,123.52,116.7127]
[1767010460794,6.55481276,123.65,123.56,0.06194447]
[1767010461096,6.55481276,123.67,123.56,3.24]
[1767010461298,6.55481276,123.67,123.56,98.9]
[1767010461591,0.06230993,123.63,123.6,0.05244758]
[1767010462297,0.06230993,123.63,123.56,3.24]
[1767010462795,0.06230993,123.63,123.6,116.6396]
[1767010462992,120.57692221,123.74,123.6,116.6396]
[1767010462993,120.55732221,123.76,123.62,2.15060384]
[1767010463302,5.7368713,123.75,123.64,3.24]
[1767010463497,0.06217767,123.7,123.68,0.05426113]
[1767010463701,0.05342529,123.7,123.68,0.05426113]
[1767010463997,6.55481276,123.79,123.68,3.29426113]
[1767010464194,5.73369215,123.78,123.68,98.88]
[1767010464389,119.78531276,123.79,123.68,98.88]
[1767010464592,6.55481276,123.76,123.64,3.24]
[1767010464898,0.05822184,123.71,123.69,0.05931749]
[1767010465102,0.05425394,123.71,123.69,0.05630887]
[1767010465404,0.05425394,123.71,123.63,98.86]
[1767010465602,6.55481276,123.73,123.64,3.24]
[1767010465806,6.55481276,123.76,123.65,98.86]
[1767010465999,120.5298,123.77,123.65,98.86]
[1767010466299,0.05184202,123.72,123.7,0.06112358]
[1767010466493,0.05312568,123.72,123.7,0.06112358]
[1767010467388,0.05312568,123.72,123.7,3.30112358]
[1767010467595,0.05312568,123.72,123.7,98.90112358]
[1767010468305,0.05312568,123.72,123.7,0.06112358]
[1767010468997,0.01549784,123.72,123.7,3.30112358]
[1767010469194,6.55481276,123.84,123.71,3.24]
[1767010469390,5.71815341,123.83,123.72,3.24]
[1767010469690,1.40651524,123.85,123.72,3.24]
[1767010469691,1.40651524,123.85,123.74,3.24]
[1767010469887,12.27300563,123.87,123.74,3.24]
[1767010470090,0.05851924,123.82,123.79,0.06042425]
[1767010470287,0.05851924,123.82,123.79,0.05582248]
[1767010470792,0.05851924,123.82,123.69,3.24]
[1767010471003,6.55481276,123.81,123.71,3.24]
[1767010471708,6.55481276,123.87,123.75,3.29834432]
[1767010471998,1.40620265,123.88,123.77,3.24]
[1767010472203,12.26250306,123.89,123.78,3.24]
[1767010472501,113.1552,123.87,123.78,98.78]
[1767010472902,113.1552,123.87,123.81,0.05163826]
[1767010472903,0.06221829,123.84,123.81,0.05163826]
[1767010473304,0.06221829,123.84,123.76,95.54]
[1767010473498,7.2755,123.85,123.76,95.54]
[1767010473694,6.55481276,123.86,123.76,95.54]
[1767010473891,119.71371276,123.87,123.76,98.78]
[1767010474296,0.06121821,123.83,123.8,0.05552651]
[1767010475194,0.06121821,123.83,123.8,3.29552651]
[1767010475598,0.06121821,123.83,123.8,0.05552651]
[1767010476892,0.06121821,123.83,123.73,3.24]
[1767010477100,113.193,123.83,123.74,95.5]
[1767010477403,119.76541276,123.81,123.72,95.5]
[1767010477707,113.2194,123.8,123.7,3.24]
[1767010477911,0.06072653,123.76,123.74,0.05423005]
[1767010478112,6.55481276,123.81,123.74,0.05423005]
[1767010479002,0.05739349,123.79,123.74,0.05423005]
[1767010479497,13.82931276,123.87,123.76,3.24]
[1767010479900,13.82931276,123.87,123.76,98.72]
[1767010480106,7.2733,123.89,123.77,3.24]
[1767010480403,119.74281276,123.84,123.74,3.24]
[1767010480603,119.74281276,123.84,123.68,113.3219]
[1767010480604,113.2247,123.8,123.69,3.24]
[1767010480810,119.78301276,123.79,123.69,98.72]
[1767010481010,6.55481276,123.78,123.69,3.24]
[1767010481211,119.79311276,123.78,123.69,3.24]
[1767010481504,0.05597197,123.75,123.72,0.05276965]
[1767010482604,6.55481276,123.68,123.55,346.6219]
[1767010482796,6.55481276,123.68,123.57,116.6676]
[1767010482998,6.55481276,123.68,123.59,3.24]
[1767010483202,6.55481276,123.69,123.59,3.24]
[1767010483405,6.55481276,123.72,123.6,3.24]
[1767010483614,7.2832,123.72,123.63,0.05138877]
[1767010483803,7.2832,123.72,123.63,95.48]
[1767010484110,127.11111276,123.74,123.64,3.24]
[1767010484408,127.11111276,123.74,123.63,95.48]
[1767010484409,120.5563,123.74,123.65,98.72]
[1767010484600,120.5563,123.74,123.68,0.05716953]
[1767010484601,0.05884796,123.71,123.68,0.05716953]
[1767010485303,120.5366,123.76,123.68,0.05716953]
[1767010485512,120.5366,123.76,123.67,95.5]
[1767010485513,7.2808,123.76,123.67,95.5]
[1767010485707,113.2762,123.74,123.63,3.32]
[1767010486010,113.288,123.73,123.64,95.5]
[1767010486207,0.06140105,123.7,123.67,0.0600699]
[1767010486403,113.2296,123.79,123.68,3.32]
[1767010486704,7.2813,123.75,123.68,3.32]
[1767010486902,120.5477,123.75,123.65,3.32]
[1767010487306,120.5477,123.75,123.66,95.5]
[1767010487499,113.2611,123.76,123.69,0.05444727]
[1767010487700,120.5294,123.77,123.69,0.05444727]
[1767010488008,113.2296,123.79,123.72,0.05241286]
[1767010488215,113.2185,123.81,123.72,0.05241286]
[1767010488411,119.76441276,123.82,123.75,0.05287547]
[1767010488607,113.2112,123.81,123.71,98.82]
[1767010489716,0.05917717,123.77,123.75,0.05537793]
[1767010491807,0.05917717,123.77,123.69,7.2845]
[1767010492002,7.2792,123.79,123.7,95.5]
[1767010492901,0.05534885,123.76,123.73,0.05318231]
[1767010495014,7.33604885,123.76,123.67,3.21]
[1767010495314,7.2807,123.76,123.68,95.48]